[Event "II Open Internacional Ateneo Marítimo (60 Aniversario)"]
[Site "C/La reina 68 (Valencia), Spain"]
[Date "2018.09.15"]
[Round "4.4"]
[White "Cebrian Martinez, Antonio"]
[Black "Valmana Canto, Jaime"]
[Result "0-1"]
[TimeControl "7m+3s por jugada"]
[WhiteFideId "2231646"]
[BlackFideId "2268990"]
[WhiteElo "1955"]
[BlackElo "2340"]

1. e4 {[%emt 00:00:03]} e6 {[%clk 00:07:02]} 2. f4 {[%clk 00:07:07]} {[%emt
00:00:04]} d5 {[%clk 00:07:03]} {[%emt 00:00:09]} 3. e5 {[%clk 00:07:09]} c5
{[%clk 00:06:59]} 4. Nf3 {[%clk 00:07:11]} {[%emt 00:00:04]} Nc6 {[%clk
00:06:55]} {[%emt 00:00:04]} 5. d3 {[%clk 00:07:13]} Nh6 {[%emt 00:00:10]} 6.
c3 Be7 {[%clk 00:06:54]} 7. Be2 {[%clk 00:07:15]} {[%emt 00:00:14]} Nf5 {[%clk
00:06:39]} {[%emt 00:00:17]} 8. O-O {[%clk 00:07:16]} h5 {[%clk 00:06:22]}
{[%emt 00:00:09]} 9. Na3 {[%clk 00:07:18]} {[%emt 00:00:07]} b6 {[%clk
00:06:17]} {[%emt 00:00:07]} 10. Nc2 {[%clk 00:07:20]} d4 {[%clk 00:06:16]}
{[%emt 00:00:14]} 11. Nd2 {[%clk 00:07:11]} {[%emt 00:00:04]} Bb7 {[%clk
00:05:53]} {[%emt 00:00:26]} 12. Ne4 {[%clk 00:07:13]} Qd7 {[%clk 00:05:45]}
{[%emt 00:00:06]} 13. c4 {[%clk 00:06:36]} {[%emt 00:00:40]} h4 {[%clk
00:05:40]} {[%emt 00:00:08]} 14. Bf3 {[%clk 00:05:45]} {[%emt 00:01:06]} O-O-O
{[%clk 00:05:37]} 15. Qe2 {[%clk 00:05:44]} {[%emt 00:00:03]} f6 {[%clk
00:05:25]} {[%emt 00:00:12]} 16. exf6 {[%clk 00:05:45]} {[%emt 00:00:04]} gxf6
{[%clk 00:05:27]} 17. Bd2 {[%clk 00:05:07]} {[%emt 00:00:38]} Rdg8 {[%clk
00:05:26]} {[%emt 00:00:24]} 18. Rae1 {[%clk 00:04:45]} {[%emt 00:00:20]} h3
{[%clk 00:05:05]} {[%emt 00:00:13]} 19. g3 {[%clk 00:04:46]} {[%emt 00:00:07]}
Nh4 {[%clk 00:05:06]} 20. Bh1 {[%clk 00:04:48]} Ng2 {[%clk 00:05:08]} 21. Bxg2
{[%clk 00:04:31]} {[%emt 00:00:14]} hxg2 {[%clk 00:05:09]} {[%emt 00:00:40]} 22.
Rf2 {[%clk 00:04:32]} f5 {[%clk 00:04:58]} {[%emt 00:00:03]} 23. Ng5 {[%clk
00:04:34]} Bxg5 {[%clk 00:04:59]} 24. fxg5 {[%clk 00:04:37]} Rxh2 {[%clk
00:04:22]} {[%emt 00:00:21]} 25. Rxg2 {[%clk 00:03:12]} {[%emt 00:01:28]} Rxg2+
{[%clk 00:04:04]} {[%emt 00:00:27]} 26. Kxg2 {[%clk 00:03:14]} Ne5+ {[%clk
00:03:09]} {[%emt 00:00:50]} 27. Kf1 {[%clk 00:03:05]} {[%emt 00:00:14]} Qc6
{[%clk 00:03:03]} {[%emt 00:00:08]} 28. Qh2 {[%clk 00:01:19]} {[%emt 00:02:11]}
Ng4 {[%clk 00:01:50]} {[%emt 00:01:07]} 0-1

[Event "II Open Internacional Ateneo Marítimo (60 Aniversario)"]
[Site "C/La reina 68 (Valencia), Spain"]
[Date "2018.09.15"]
[Round "4.5"]
[White "Cruz Lledo, Pablo"]
[Black "Diaz Velandia, Jose Manuel"]
[Result "1-0"]
[TimeControl "7m+3s por jugada"]
[WhiteFideId "2297361"]
[BlackFideId "3901939"]
[WhiteElo "2436"]
[BlackElo "2368"]

1. d4 {[%clk 00:06:36]} {[%emt 00:00:33]} d5 {[%clk 00:07:05]} 2. g3 {[%clk
00:06:38]} c6 {[%clk 00:07:08]} 3. Bg2 {[%clk 00:06:40]} g6 {[%clk 00:07:10]} 4.
Nf3 {[%clk 00:06:42]} Bg7 {[%clk 00:07:12]} 5. O-O {[%clk 00:06:43]} {[%emt
00:00:20]} Nf6 {[%clk 00:07:14]} 6. b3 {[%clk 00:06:45]} O-O {[%clk 00:07:15]}
7. Bb2 {[%clk 00:06:48]} Ne4 {[%clk 00:07:15]} 8. c4 {[%clk 00:06:44]} Nd7
{[%clk 00:07:08]} {[%emt 00:00:17]} 9. Nc3 {[%clk 00:06:46]} Nxc3 {[%clk
00:07:09]} 10. Bxc3 {[%clk 00:06:47]} Nb6 {[%clk 00:07:09]} {[%emt 00:00:21]}
11. c5 {[%clk 00:06:37]} Nd7 {[%clk 00:07:10]} 12. b4 {[%clk 00:06:33]} Qc7
{[%clk 00:07:08]} {[%emt 00:00:08]} 13. Qb3 {[%clk 00:06:16]} {[%emt 00:00:16]}
e5 {[%clk 00:07:08]} {[%emt 00:00:32]} 14. dxe5 {[%clk 00:06:15]} Nxe5 {[%clk
00:07:10]} 15. Nxe5 {[%clk 00:06:17]} Bxe5 {[%clk 00:07:11]} 16. Qb2 {[%clk
00:06:14]} Re8 {[%clk 00:07:10]} 17. Bf3 {[%clk 00:06:04]} {[%emt 00:00:06]}
Bh3 {[%clk 00:06:49]} {[%emt 00:00:19]} 18. Rfd1 {[%clk 00:06:05]} {[%emt
00:00:15]} Rad8 {[%clk 00:06:51]} 19. a4 {[%clk 00:06:03]} Bxc3 {[%clk
00:06:48]} 20. Qxc3 {[%clk 00:06:04]} Qe5 {[%clk 00:06:45]} {[%emt 00:00:16]}
21. Qxe5 {[%clk 00:06:02]} Rxe5 {[%clk 00:06:47]} 22. Rd4 {[%clk 00:06:04]}
{[%emt 00:00:03]} Bf5 {[%clk 00:06:30]} {[%emt 00:00:16]} 23. b5 {[%clk
00:05:57]} {[%emt 00:00:22]} Rde8 {[%clk 00:06:29]} 24. Ra3 {[%clk 00:05:17]}
{[%emt 00:00:34]} Be4 {[%clk 00:06:29]} {[%emt 00:00:30]} 25. bxc6 {[%clk
00:05:05]} {[%emt 00:00:03]} bxc6 {[%clk 00:06:27]} 26. Rb3 {[%clk 00:05:03]}
{[%emt 00:00:07]} Bxf3 {[%clk 00:06:29]} 27. exf3 {[%clk 00:05:04]} Re1+ {[%clk
00:06:27]} 28. Kg2 {[%clk 00:05:06]} Rc1 {[%clk 00:06:29]} 29. Rb7 {[%clk
00:05:06]} {[%emt 00:00:04]} a5 {[%clk 00:05:41]} {[%emt 00:00:54]} 30. Rf4
{[%clk 00:04:54]} {[%emt 00:00:09]} f5 {[%clk 00:05:38]} {[%emt 00:00:09]} 31.
g4 {[%clk 00:04:44]} {[%emt 00:00:11]} Rf8 {[%clk 00:05:37]} {[%emt 00:00:51]}
32. g5 {[%clk 00:04:26]} Rxc5 {[%clk 00:05:36]} 33. Rh4 {[%clk 00:04:28]} Rf7
{[%clk 00:04:51]} {[%emt 00:00:27]} 34. Rxf7 {[%clk 00:04:28]} {[%emt
00:00:12]} Kxf7 {[%clk 00:04:53]} 35. Rxh7+ {[%clk 00:04:30]} Kg8 {[%clk
00:04:44]} {[%emt 00:00:11]} 36. Ra7 {[%clk 00:04:31]} d4 {[%clk 00:04:42]}
{[%emt 00:00:04]} 37. Kf1 {[%clk 00:04:11]} {[%emt 00:00:20]} Rc2 {[%clk
00:02:20]} {[%emt 00:03:00]} 38. Rxa5 {[%clk 00:04:11]} c5 {[%clk 00:02:22]} 39.
Ra8+ {[%clk 00:04:04]} Kf7 {[%clk 00:02:24]} 40. Rd8 {[%clk 00:04:01]} Ke7
{[%clk 00:02:21]} 41. Rd5 {[%clk 00:03:44]} {[%emt 00:00:29]} Ke6 {[%clk
00:02:01]} {[%emt 00:00:07]} 42. Rd8 {[%clk 00:03:46]} {[%emt 00:00:37]} Ke5
{[%clk 00:02:03]} 43. h4 {[%clk 00:03:26]} {[%emt 00:00:07]} Kf4 {[%clk
00:02:05]} 44. Kg2 {[%clk 00:03:21]} Rc3 {[%clk 00:01:57]} {[%emt 00:00:03]} 45.
a5 {[%clk 00:03:18]} {[%emt 00:00:08]} Ra3 {[%clk 00:01:37]} {[%emt 00:00:19]}
46. Rd6 {[%clk 00:03:13]} {[%emt 00:00:16]} d3 {[%clk 00:00:44]} {[%emt
00:00:48]} 47. Rxg6 {[%clk 00:02:13]} {[%emt 00:01:50]} c4 {[%clk 00:00:39]} 48.
Rc6 {[%clk 00:02:00]} Ke5 {[%clk 00:00:33]} 49. f4+ {[%clk 00:01:28]} {[%emt
00:00:22]} Kd4 {[%clk 00:00:19]} {[%emt 00:00:19]} 50. g6 {[%clk 00:01:30]}
{[%emt 00:00:03]} Rxa5 {[%clk 00:00:15]} {[%emt 00:00:12]} 51. g7 {[%clk
00:01:20]} {[%emt 00:00:05]} Ra8 {[%clk 00:00:17]} 52. h5 {[%clk 00:01:22]}
{[%emt 00:00:10]} c3 {[%clk 00:00:14]} {[%emt 00:00:04]} 53. h6 {[%clk
00:01:22]} Rg8 {[%clk 00:00:10]} {[%emt 00:00:11]} 54. Kh2 {[%clk 00:01:13]}
{[%emt 00:00:04]} d2 {[%clk 00:00:09]} {[%emt 00:00:06]} 55. h7 {[%clk
00:01:15]} {[%emt 00:00:17]} Kd5 {[%clk 00:00:07]} 56. hxg8=Q+ {[%clk
00:01:13]} 1-0

[Event "II Open Internacional Ateneo Marítimo (60 Aniversario)"]
[Site "C/La reina 68 (Valencia), Spain"]
[Date "2018.09.15"]
[Round "4.6"]
[White "Kovacevic, Slobodan"]
[Black "Remolar Gallen, Jose"]
[Result "1-0"]
[TimeControl "7m+3s por jugada"]
[WhiteFideId "902152"]
[BlackFideId "2215187"]
[WhiteElo "2252"]
[BlackElo "2321"]

1. d4 {[%clk 00:07:03]} {[%emt 00:00:08]} g6 {[%clk 00:07:03]} 2. e4 {[%clk
00:07:03]} d6 {[%clk 00:07:03]} {[%emt 00:00:06]} 3. c3 {[%clk 00:07:03]} Nf6
{[%clk 00:07:03]} 4. Qc2 {[%clk 00:07:03]} {[%emt 00:00:03]} Bg7 {[%clk
00:06:59]} {[%emt 00:00:15]} 5. Nf3 {[%clk 00:07:03]} O-O {[%clk 00:06:56]} 6.
Be2 {[%clk 00:07:03]} {[%emt 00:00:03]} c6 {[%clk 00:06:53]} {[%emt 00:00:18]}
7. O-O {[%clk 00:07:03]} Qc7 {[%clk 00:06:53]} 8. a4 {[%clk 00:07:03]} e5
{[%clk 00:06:53]} 9. dxe5 {[%clk 00:07:03]} dxe5 {[%clk 00:06:53]} 10. a5
{[%clk 00:07:03]} {[%emt 00:00:05]} Nh5 {[%clk 00:06:46]} {[%emt 00:00:04]} 11.
Re1 {[%clk 00:07:02]} {[%emt 00:00:08]} Nf4 {[%clk 00:06:46]} 12. Bf1 {[%clk
00:07:02]} Bg4 {[%clk 00:06:46]} {[%emt 00:00:03]} 13. Nfd2 {[%clk 00:06:59]}
{[%emt 00:00:15]} Nd7 {[%clk 00:06:36]} {[%emt 00:00:21]} 14. Nc4 {[%clk
00:06:59]} b5 {[%clk 00:05:58]} {[%emt 00:00:22]} 15. Ne3 {[%clk 00:06:31]}
{[%emt 00:01:04]} Be6 {[%clk 00:05:58]} 16. b4 {[%clk 00:06:24]} {[%emt
00:00:03]} a6 {[%clk 00:05:58]} 17. c4 {[%clk 00:06:12]} Qb7 {[%clk 00:05:45]}
{[%emt 00:00:25]} 18. c5 {[%clk 00:05:59]} {[%emt 00:00:20]} f5 {[%clk
00:05:09]} {[%emt 00:00:17]} 19. Nd2 {[%clk 00:05:58]} {[%emt 00:00:03]} Rae8
{[%clk 00:04:42]} {[%emt 00:00:29]} 20. Bb2 {[%clk 00:05:56]} {[%emt 00:00:51]}
Qc7 {[%clk 00:04:00]} {[%emt 00:00:04]} 21. Rad1 {[%clk 00:05:56]} Nh5 {[%clk
00:03:33]} {[%emt 00:00:42]} 22. Be2 {[%clk 00:05:13]} {[%emt 00:00:32]} f4
{[%clk 00:03:22]} {[%emt 00:00:53]} 23. Ng4 {[%clk 00:04:45]} Nhf6 {[%clk
00:02:16]} {[%emt 00:01:00]} 24. Nxf6+ {[%clk 00:04:45]} {[%emt 00:00:20]} Bxf6
{[%clk 00:01:59]} {[%emt 00:00:07]} 25. h3 {[%clk 00:04:30]} {[%emt 00:00:36]}
h5 {[%clk 00:01:41]} {[%emt 00:00:11]} 26. Nf3 {[%clk 00:04:30]} Bf7 {[%clk
00:01:16]} {[%emt 00:00:17]} 27. Rd2 {[%clk 00:04:23]} {[%emt 00:00:23]} g5
{[%clk 00:01:01]} {[%emt 00:00:05]} 28. Red1 {[%clk 00:04:23]} {[%emt
00:00:33]} Rd8 {[%clk 00:00:50]} 29. Nh2 {[%clk 00:04:23]} Rfe8 {[%clk
00:00:42]} 30. Rd3 {[%clk 00:03:55]} {[%emt 00:00:29]} Nf8 {[%clk 00:00:42]}
{[%emt 00:00:04]} 31. Rd6 {[%clk 00:03:47]} {[%emt 00:00:21]} Be7 {[%clk
00:00:42]} 32. Rxd8 {[%clk 00:01:49]} {[%emt 00:02:07]} Rxd8 {[%clk 00:00:42]}
33. Rd2 {[%clk 00:01:49]} Bf6 {[%clk 00:00:29]} 34. Qd1 {[%clk 00:01:41]}
{[%emt 00:00:16]} Rxd2 {[%clk 00:00:29]} {[%emt 00:00:04]} 35. Qxd2 Qd7 {[%clk
00:00:29]} 36. Qc2 {[%clk 00:01:36]} {[%emt 00:00:04]} Ne6 {[%clk 00:00:28]}
{[%emt 00:00:06]} 37. Nf3 {[%clk 00:01:36]} Nd4 {[%clk 00:00:21]} {[%emt
00:00:08]} 38. Bxd4 {[%clk 00:01:26]} {[%emt 00:00:11]} exd4 {[%clk 00:00:21]}
{[%emt 00:00:06]} 39. e5 {[%clk 00:01:26]} Bg7 {[%clk 00:00:17]} {[%emt
00:00:11]} 40. Nxg5 {[%clk 00:01:17]} {[%emt 00:00:07]} Bxe5 {[%clk 00:00:11]}
{[%emt 00:00:06]} 41. Qh7+ {[%clk 00:01:15]} {[%emt 00:00:11]} Kf8 {[%clk
00:00:11]} 42. Bxh5 {[%clk 00:01:15]} {[%emt 00:00:04]} d3 {[%clk 00:00:07]}
{[%emt 00:00:03]} 43. Qxf7+ {[%clk 00:01:01]} {[%emt 00:00:14]} Qxf7 {[%clk
00:00:07]} {[%emt 00:00:07]} 44. Nxf7 {[%clk 00:01:01]} Bc3 {[%clk 00:00:07]}
45. Nd8 {[%clk 00:00:58]} {[%emt 00:00:04]} Bxb4 {[%clk 00:00:07]} {[%emt
00:00:04]} 46. Nxc6 {[%clk 00:00:58]} {[%emt 00:00:04]} Bxc5 {[%clk 00:00:07]}
47. Nb8 {[%clk 00:00:58]} Bb4 {[%clk 00:00:07]} {[%emt 00:00:08]} 48. Nxa6
{[%clk 00:00:58]} {[%emt 00:00:04]} Bxa5 {[%clk 00:00:07]} 49. Nc5 {[%clk
00:00:56]} d2 {[%clk 00:00:07]} {[%emt 00:00:04]} 50. Ne6+ {[%clk 00:00:56]}
Ke7 {[%clk 00:00:07]} 51. Nxf4 {[%clk 00:00:56]} {[%emt 00:00:08]} Kd6 {[%clk
00:00:07]} 52. Kf1 {[%clk 00:00:55]} Ke5 {[%clk 00:00:07]} 53. g3 {[%clk
00:00:53]} {[%emt 00:00:03]} Kd4 {[%emt 00:00:16]} 54. Bd1 Kc3 55. Ke2 b4 56.
Nd5+ {[%emt 00:00:05]} Kd4 57. Ne3 {[%emt 00:00:11]} Kc3 {[%emt 00:00:04]} 58.
Nf1 {[%emt 00:00:08]} b3 1-0

[Event "II Open Internacional Ateneo Marítimo (60 Aniversario)"]
[Site "C/La reina 68 (Valencia), Spain"]
[Date "2018.09.15"]
[Round "4.7"]
[White "Fenollar Jorda, Manuel"]
[Black "Ribera Cebolla, Marc"]
[Result "1-0"]
[TimeControl "7m+3s por jugada"]
[WhiteFideId "2217104"]
[BlackFideId "22238999"]
[WhiteElo "2342"]
[BlackElo "2123"]

1. d4 {[%clk 00:07:05]} {[%emt 00:00:42]} Nf6 {[%clk 00:06:29]} {[%emt
00:00:04]} 2. Nf3 {[%clk 00:07:07]} e6 {[%clk 00:06:23]} {[%emt 00:00:26]} 3.
e3 {[%clk 00:07:08]} c5 {[%clk 00:06:24]} 4. Bd3 {[%clk 00:07:09]} b6 {[%clk
00:06:26]} 5. c3 {[%clk 00:07:05]} {[%emt 00:00:06]} Bb7 {[%clk 00:06:28]} 6.
Nbd2 {[%clk 00:07:06]} Be7 {[%clk 00:06:21]} 7. e4 {[%clk 00:07:04]} {[%emt
00:00:08]} d6 {[%clk 00:06:06]} {[%emt 00:00:14]} 8. O-O {[%clk 00:07:01]}
{[%emt 00:00:12]} Nbd7 {[%clk 00:06:03]} {[%emt 00:00:14]} 9. Re1 {[%clk
00:06:59]} cxd4 {[%clk 00:05:50]} {[%emt 00:00:09]} 10. cxd4 {[%clk 00:06:49]}
{[%emt 00:00:11]} Nf8 {[%clk 00:04:29]} {[%emt 00:01:24]} 11. Qa4+ {[%clk
00:05:29]} {[%emt 00:01:22]} N6d7 {[%clk 00:04:18]} {[%emt 00:00:46]} 12. Nf1
{[%clk 00:05:13]} a6 {[%clk 00:04:12]} 13. Be3 {[%clk 00:05:04]} {[%emt
00:00:08]} Ng6 {[%clk 00:04:06]} {[%emt 00:00:29]} 14. Rec1 {[%clk 00:04:39]}
{[%emt 00:00:08]} O-O {[%clk 00:04:02]} {[%emt 00:00:09]} 15. Qd1 {[%clk
00:04:39]} Ra7 {[%clk 00:03:32]} {[%emt 00:00:48]} 16. Rc2 {[%clk 00:04:23]}
{[%emt 00:00:11]} Qa8 {[%clk 00:03:29]} {[%emt 00:00:19]} 17. N3d2 {[%clk
00:04:21]} {[%emt 00:00:03]} Bf6 {[%clk 00:02:58]} {[%emt 00:00:24]} 18. Rac1
{[%clk 00:04:07]} {[%emt 00:00:10]} Bd8 {[%clk 00:02:33]} {[%emt 00:00:32]} 19.
f3 {[%clk 00:03:52]} {[%emt 00:00:45]} Kh8 {[%clk 00:02:32]} 20. Nc4 {[%clk
00:03:30]} {[%emt 00:00:03]} Be7 {[%clk 00:01:53]} {[%emt 00:00:36]} 21. Ncd2
{[%clk 00:03:22]} {[%emt 00:00:11]} Bd8 {[%clk 00:01:55]} 22. b4 {[%clk
00:03:19]} {[%emt 00:00:36]} f5 {[%clk 00:01:47]} {[%emt 00:00:04]} 23. exf5
{[%clk 00:03:20]} exf5 {[%clk 00:01:50]} 24. Bc4 {[%clk 00:03:18]} Bd5 {[%clk
00:01:49]} 25. Bf2 {[%clk 00:03:10]} {[%emt 00:00:07]} Nf4 {[%clk 00:01:44]}
{[%emt 00:00:13]} 26. Ne3 {[%clk 00:03:05]} Bxc4 {[%clk 00:01:26]} {[%emt
00:00:18]} 27. Ndxc4 {[%clk 00:03:03]} {[%emt 00:00:42]} Nd5 {[%clk 00:01:13]}
28. Nxd6 {[%clk 00:02:47]} Nxb4 {[%clk 00:01:13]} {[%emt 00:00:18]} 29. Rc8
{[%clk 00:02:46]} Nb8 {[%clk 00:01:00]} {[%emt 00:00:13]} 30. Qb3 {[%clk
00:02:34]} {[%emt 00:00:06]} 1-0

[Event "II Open Internacional Ateneo Marítimo (60 Aniversario)"]
[Site "C/La reina 68 (Valencia), Spain"]
[Date "2018.09.15"]
[Round "5.1"]
[White "Plaskett, H James"]
[Black "Valmana Canto, Jaime"]
[Result "1-0"]
[TimeControl "7m+3s por jugada"]
[WhiteFideId "400238"]
[BlackFideId "2268990"]
[WhiteElo "2450"]
[BlackElo "2340"]

1. Nf3 {[%clk 00:07:04]} {[%emt 00:00:04]} Nf6 {[%clk 00:07:04]} 2. c4 {[%clk
00:07:06]} g6 {[%clk 00:06:59]} {[%emt 00:00:05]} 3. Nc3 {[%clk 00:07:07]} Bg7
{[%clk 00:07:01]} 4. g3 {[%clk 00:07:08]} {[%emt 00:00:08]} O-O {[%clk
00:06:57]} {[%emt 00:00:03]} 5. Bg2 {[%clk 00:07:10]} d6 {[%clk 00:06:34]}
{[%emt 00:00:24]} 6. O-O {[%clk 00:07:10]} {[%emt 00:00:10]} e5 {[%clk
00:06:33]} {[%emt 00:00:04]} 7. d3 {[%clk 00:07:11]} c6 {[%clk 00:06:28]}
{[%emt 00:00:04]} 8. Rb1 {[%clk 00:07:08]} {[%emt 00:00:08]} Re8 {[%clk
00:06:02]} {[%emt 00:00:25]} 9. Bg5 {[%clk 00:06:57]} {[%emt 00:00:13]} h6
{[%clk 00:06:03]} {[%emt 00:00:35]} 10. Bxf6 {[%clk 00:06:59]} Qxf6 {[%clk
00:06:00]} 11. b4 {[%clk 00:06:58]} {[%emt 00:00:03]} Nd7 {[%clk 00:05:15]}
{[%emt 00:00:48]} 12. b5 {[%clk 00:06:53]} Nc5 {[%clk 00:05:12]} 13. Nd2 {[%clk
00:06:54]} Bd7 {[%clk 00:05:12]} 14. bxc6 {[%clk 00:06:41]} {[%emt 00:00:11]}
bxc6 {[%clk 00:05:13]} {[%emt 00:00:11]} 15. Na4 {[%clk 00:06:13]} {[%emt
00:00:23]} Ne6 {[%clk 00:04:34]} {[%emt 00:00:40]} 16. Rb7 {[%clk 00:06:12]}
{[%emt 00:00:40]} Bc8 {[%clk 00:04:01]} {[%emt 00:00:07]} 17. Rb1 {[%clk
00:05:07]} {[%emt 00:01:01]} Bd7 {[%clk 00:04:01]} {[%emt 00:00:20]} 18. Nb3
{[%clk 00:04:10]} {[%emt 00:00:46]} Qe7 {[%clk 00:02:42]} {[%emt 00:01:22]} 19.
Na5 {[%clk 00:04:08]} {[%emt 00:00:11]} Nd8 {[%clk 00:02:44]} 20. Nc3 {[%clk
00:03:58]} {[%emt 00:00:06]} Rc8 {[%clk 00:02:26]} {[%emt 00:00:19]} 21. Qc2
{[%clk 00:03:48]} {[%emt 00:00:12]} f5 {[%clk 00:02:28]} {[%emt 00:00:17]} 22.
Rfd1 {[%clk 00:03:38]} {[%emt 00:00:03]} h5 {[%clk 00:02:24]} {[%emt 00:00:04]}
23. e3 {[%clk 00:03:24]} {[%emt 00:00:16]} h4 {[%clk 00:02:24]} {[%emt
00:00:14]} 24. d4 {[%clk 00:03:26]} hxg3 {[%clk 00:02:12]} {[%emt 00:00:05]} 25.
hxg3 {[%clk 00:03:28]} exd4 {[%clk 00:01:50]} {[%emt 00:00:26]} 26. exd4 {[%clk
00:03:28]} {[%emt 00:00:15]} Ne6 {[%clk 00:01:52]} 27. d5 {[%clk 00:03:12]}
{[%emt 00:00:07]} Nd4 {[%clk 00:01:50]} {[%emt 00:00:09]} 28. Rxd4 {[%clk
00:03:11]} {[%emt 00:00:04]} Bxd4 {[%clk 00:01:51]} {[%emt 00:00:04]} 29. dxc6
{[%clk 00:03:13]} Be6 {[%clk 00:01:45]} {[%emt 00:00:11]} 30. Nd5 {[%clk
00:02:59]} {[%emt 00:00:09]} Qg5 {[%clk 00:01:04]} {[%emt 00:00:48]} 31. Qd3
{[%clk 00:02:50]} {[%emt 00:00:12]} Bg7 {[%clk 00:00:48]} {[%emt 00:00:18]} 32.
Nf4 {[%clk 00:02:40]} {[%emt 00:00:11]} Bf7 {[%clk 00:00:31]} {[%emt 00:00:24]}
33. Nb7 {[%clk 00:02:30]} {[%emt 00:00:10]} Be5 {[%clk 00:00:29]} {[%emt
00:00:11]} 34. Nxd6 {[%clk 00:02:22]} {[%emt 00:00:05]} Red8 {[%clk 00:00:22]}
{[%emt 00:00:17]} 35. Nxf7 {[%clk 00:02:23]} {[%emt 00:00:03]} Kxf7 {[%clk
00:00:20]} 36. Nd5 {[%clk 00:02:19]} {[%emt 00:00:06]} Bg7 {[%clk 00:00:09]}
{[%emt 00:00:13]} 37. Qe2 {[%clk 00:01:53]} {[%emt 00:00:50]} Rxc6 {[%clk
00:00:07]} 38. Rb7+ {[%clk 00:01:55]} Kf8 {[%clk 00:00:08]} 39. f4 {[%clk
00:01:56]} Bd4+ {[%clk 00:00:08]} {[%emt 00:00:09]} 40. Kf1 {[%clk 00:01:53]}
1-0

[Event "II Open Internacional Ateneo Marítimo (60 Aniversario)"]
[Site "C/La reina 68 (Valencia), Spain"]
[Date "2018.09.15"]
[Round "5.2"]
[White "Carbonell Sancho, Marc"]
[Black "Cruz Lledo, Pablo"]
[Result "0-1"]
[TimeControl "7m+3s por jugada"]
[WhiteFideId "32029969"]
[BlackFideId "2297361"]
[WhiteElo "2051"]
[BlackElo "2436"]

1. e4 {[%clk 00:07:05]} {[%emt 00:00:30]} c6 {[%clk 00:06:55]} {[%emt
00:00:04]} 2. d4 {[%clk 00:07:07]} d5 {[%clk 00:06:57]} 3. Nc3 {[%clk
00:07:09]} dxe4 {[%clk 00:06:59]} 4. Nxe4 {[%clk 00:07:10]} Nf6 {[%clk
00:06:57]} 5. Nxf6+ {[%clk 00:07:11]} {[%emt 00:00:04]} exf6 {[%clk 00:06:59]}
6. c3 {[%clk 00:07:13]} Bd6 {[%clk 00:07:00]} 7. Bd3 {[%clk 00:07:15]} O-O
{[%clk 00:06:59]} {[%emt 00:00:11]} 8. Qc2 {[%clk 00:07:15]} Re8+ {[%clk
00:07:01]} 9. Ne2 {[%clk 00:07:17]} g6 {[%clk 00:07:03]} 10. Be3 {[%clk
00:07:18]} Nd7 {[%clk 00:07:04]} 11. O-O-O {[%clk 00:07:18]} {[%emt 00:00:14]}
f5 {[%clk 00:06:58]} 12. h4 {[%clk 00:06:48]} {[%emt 00:00:27]} Nf6 {[%clk
00:06:59]} {[%emt 00:00:29]} 13. Bg5 {[%clk 00:06:50]} Be7 {[%clk 00:06:57]}
{[%emt 00:00:04]} 14. Nf4 {[%clk 00:06:13]} {[%emt 00:00:40]} Ne4 {[%clk
00:06:58]} {[%emt 00:00:05]} 15. Bxe7 {[%clk 00:05:57]} Qxe7 {[%clk 00:06:59]}
16. h5 {[%clk 00:05:53]} {[%emt 00:00:12]} g5 {[%clk 00:05:24]} {[%emt
00:01:45]} 17. Nh3 {[%clk 00:05:28]} {[%emt 00:00:11]} Bd7 {[%clk 00:05:21]}
{[%emt 00:00:19]} 18. Rhe1 {[%clk 00:05:16]} {[%emt 00:00:03]} Qf6 {[%clk
00:05:13]} {[%emt 00:00:11]} 19. Kb1 {[%clk 00:04:15]} {[%emt 00:01:01]} Nd6
{[%clk 00:05:09]} {[%emt 00:00:15]} 20. f3 {[%clk 00:03:58]} {[%emt 00:00:18]}
h6 {[%clk 00:05:04]} {[%emt 00:00:09]} 21. Nf2 {[%clk 00:03:58]} Rxe1 {[%clk
00:04:29]} {[%emt 00:00:35]} 22. Rxe1 {[%clk 00:04:00]} {[%emt 00:00:04]} Re8
{[%clk 00:04:27]} {[%emt 00:00:11]} 23. Rxe8+ {[%clk 00:03:52]} {[%emt
00:00:04]} Bxe8 {[%clk 00:04:29]} {[%emt 00:00:03]} 24. Qe2 {[%clk 00:03:53]}
Qe6 {[%clk 00:04:29]} {[%emt 00:00:03]} 25. Kc2 {[%clk 00:03:26]} {[%emt
00:00:28]} Bd7 {[%clk 00:03:58]} {[%emt 00:01:07]} 26. b3 {[%clk 00:03:27]}
Qxe2+ {[%clk 00:03:47]} 27. Bxe2 {[%clk 00:03:28]} f4 {[%clk 00:03:49]} 28. Bd3
{[%clk 00:03:06]} {[%emt 00:00:41]} f5 {[%clk 00:03:49]} 29. Nh1 {[%clk
00:02:22]} {[%emt 00:00:29]} Kf7 {[%clk 00:03:36]} {[%emt 00:00:30]} 30. c4
{[%clk 00:02:19]} Kf6 {[%clk 00:03:29]} 31. c5 {[%clk 00:01:29]} {[%emt
00:00:45]} Ne8 {[%clk 00:03:22]} {[%emt 00:00:18]} 32. Be2 {[%clk 00:01:18]}
{[%emt 00:00:20]} g4 {[%clk 00:03:12]} 33. Nf2 {[%clk 00:01:10]} {[%emt
00:00:12]} Kg5 {[%clk 00:03:10]} {[%emt 00:00:13]} 34. Kd3 {[%clk 00:00:37]}
{[%emt 00:00:26]} Be6 {[%clk 00:01:45]} {[%emt 00:01:43]} 35. fxg4 {[%clk
00:00:20]} {[%emt 00:00:04]} fxg4 {[%clk 00:01:46]} {[%emt 00:00:28]} 36. Ke4
{[%clk 00:00:22]} f3 {[%clk 00:01:11]} {[%emt 00:00:17]} 37. gxf3 {[%clk
00:00:20]} {[%emt 00:00:03]} g3 {[%clk 00:01:13]} 38. f4+ {[%clk 00:00:14]}
{[%emt 00:00:10]} Kf6 {[%clk 00:01:07]} {[%emt 00:00:10]} 39. f5 {[%clk
00:00:07]} {[%emt 00:00:09]} Bxf5+ {[%clk 00:00:54]} {[%emt 00:00:15]} 40. Kf3
{[%clk 00:00:09]} {[%emt 00:00:04]} gxf2 {[%clk 00:00:56]} 41. Kxf2 {[%clk
00:00:11]} Kg5 {[%clk 00:00:47]} {[%emt 00:00:10]} 42. b4 {[%clk 00:00:14]} Nc7
{[%clk 00:00:45]} {[%emt 00:00:30]} 43. a4 {[%clk 00:00:15]} {[%emt 00:00:03]}
a6 {[%clk 00:00:46]} 44. Ke3 {[%clk 00:00:15]} Nd5+ {[%emt 00:00:07]} 0-1